Cogmind - Beta 16 @@@ ROGUE MODE // 2025.12.31 @ 02:28:45 Player: Zaros426 Result: Destroyed by S4-MJV(R) with Subdweller Machine Gun Performance ------------- Evolutions (0) 0 Regions Visited (3) 600 Robots Destroyed (53) 265 Value Destroyed (1127) 1127 Prototype IDs (13) 260 Alien Tech Used (0) 0 Bonus (0) 0 TOTAL SCORE: 2252 Bonus ------- None Cogmind --------- Core Integrity 0/250 Matter 274/300 Energy 59/100 System Corruption 0% Temperature Cool (0) Movement Treading (160) Location -10/Subcaves Parts ------- > --- POWER (1) -------- (None) > --- PROPULSION (2) --- Spiked Treads > --- UTILITY (2) ------ (None) > --- WEAPON (2) ------- Subdweller Beam Cannon > --- INVENTORY (5) ---- Subdweller Monowheel Light Humpback Experimental Sensor Array Peak State ------------ > --- POWER ------------ (None) > --- PROPULSION ------- Spiked Treads Spiked Treads > --- UTILITY ---------- Huge Storage Unit Experimental Sensor Array > --- WEAPON ----------- Subdweller Laser Subdweller Beam Cannon > --- INVENTORY -------- Subdweller Monowheel Subdweller Monowheel Subdweller Monowheel Disposable Heat Sink Light Humpback Subdweller Optics Scrap Shield Rainbow Chip Subdweller Laser Battle Rifle Battle Rifle Subdweller Machine Gun Heavy Battle Rifle Battle Cannon Battle Cannon Mini Grenade Launcher Subdweller Shrapnel Launcher Datajack [Rating: 23] Favorites ----------- Power Ion Engine Engine Ion Engine Propulsion Spiked Treads Treads Spiked Treads Wheel Subdweller Monowheel Utility Disposable Heat Sink Device Disposable Heat Sink Storage Huge Storage Unit Protection Medium Armor Plating Weapon Spread Laser Energy Gun Spread Laser Energy Cannon Subdweller Beam Cannon Ballistic Gun Battle Rifle Ballistic Cannon Battle Cannon Launcher Mini Grenade Launcher Special Weapon Mining Laser Build | -11 -10 -10 -10 ------- Run | Yrd Mat Min Sub Slots Evolved . | . . . . Power . | . . . . Propulsion . | . . . . Utility . | . . . . Weapon . | . . . . Parts Attached 36 | 7 13 2 14 Power 3 | 1 1 . 1 Engine 3 | 1 1 . 1 Core . | . . . . Reactor . | . . . . Propulsion 8 | 2 2 . 4 Treads 6 | 2 2 . 2 Leg . | . . . . Wheel 2 | . . . 2 Hover . | . . . . Flight . | . . . . Utility 12 | 2 6 1 3 Device 6 | 1 3 1 1 Storage 2 | 1 . . 1 Processor . | . . . . Hackware . | . . . . Protection 4 | . 3 . 1 Artifact . | . . . . Weapon 13 | 2 4 1 6 Energy Gun 6 | 2 2 . 2 Energy Cannon 2 | . 1 . 1 Ballistic Gun 2 | . . . 2 Ballistic Cannon 1 | . . . 1 Launcher 1 | . . 1 . Special Weapon 1 | . 1 . . Impact Weapon . | . . . . Slashing Weapon . | . . . . Piercing Weapon . | . . . . Special Melee Weapon . | . . . . Unidentified Prototypes 1 | . . 1 . Parts Lost 5 | . 1 . 4 Power 1 | . . . 1 Propulsion 1 | . . . 1 Utility 1 | . . . 1 Weapon 2 | . 1 . 1 Highest Loss Streak 3 | . 1 . 3 To Critical Strikes . | . . . . Average Backups 7 | . 4 5 9 Power . | . . . . Propulsion . | . . . 1 Utility 2 | . 1 1 2 Weapon 3 | . 1 2 3 Tool/Special . | . . . . Unused Backups 15 | . 3 1 11 Power . | . . . . Propulsion 1 | . . . 1 Utility 6 | . 2 1 3 Weapon 6 | . . . 6 Tool/Special 2 | . 1 . 1 Average Slot Usage (%) 93 | . 99 100 89 Engine 8 | . 14 14 4 Treads 27 | . 28 28 26 Device 15 | . 12 14 16 Storage 5 | . 3 . 7 Protection 6 | . 11 14 3 Energy Gun 21 | . 26 24 18 Energy Cannon 6 | . . . 9 Peak Build Rating 23 | 7 12 19 23 Average Rating 16 | 4 10 12 19 On Entrance 7 | . 7 12 12 Avg Prop Armor Cover (%) 18 | . . . 18 Naked Turns . | . . . . Heaviest Build 93 | 15 19 19 93 Greatest Support 40 | 40 40 40 40 Greatest Overweight (x) 4 | . . . 4 Average Overweight (x) . | . . . 1 Largest Inventory Capacity 25 | 8 8 5 25 Average Capacity 12 | 6 5 5 16 Most Carried 20 | 3 8 5 20 Average Carried 7 | . 4 4 9 Final Capacity 8 | 8 5 5 5 Final Carried 5 | 2 5 5 4 Class Distribution -------------------- 100% | Mutant Dominant Class ---------------- Mutant | -10/Materials Mutant | -10/Mines Mutant | -10/Subcaves Resources | -11 -10 -10 -10 ----------- Run | Yrd Mat Min Sub Matter Collected 723 | 270 140 60 253 Remotely . | . . . . Salvage Created 1289 | 124 817 130 218 Parts 105 | 8 65 19 13 Haulers Intercepted 2 | . 2 . . Recyclers Shooed 1 | . 1 . . Parts Field Recycled . | . . . . Retrieved Matter . | . . . . Parts Self-Destructed 12 | . . . 12 Prevented . | . . . . Parts Restored . | . . . . Kills | -11 -10 -10 -10 ------- Run | Yrd Mat Min Sub Combat Hostiles Destroyed 35 | . 19 6 10 Guns 28 | . 18 3 7 Cannons 2 | . . . 2 AOE 4 | . 1 3 . Classes Destroyed 10 | 2 6 . 2 Worker 4 | . 2 2 . Tunneler 2 | 2 . . . Hauler 2 | . 2 . . Recycler 3 | 1 1 1 . Operator 4 | . 4 . . Watcher 3 | . 3 . . Swarmer 13 | . 3 6 4 Grunt 16 | . 16 . . Sentry 1 | . . . 1 Subdweller 5 | . . . 5 Best Kill Streak 6 | 3 6 5 3 Combat Bots Only 4 | . 4 3 3 Max Kills in Single Turn 4 | 2 4 4 1 Gunslinging 1 | . . 1 . Exploded 3 | . 1 3 . Melee . | . . . . Uniques/NPCs Destroyed . | . . . . Combat | -11 -10 -10 -10 -------- Run | Yrd Mat Min Sub Hostile Shots Fired 139 | . 44 17 78 Missed 34 | . 14 3 17 Hits 105 | . 30 14 61 Projectile 105 | . 30 14 61 AOE 4 | . . . 4 Critical Strikes 2 | . . . 2 Damage Taken 1623 | . 349 118 1156 Core 261 | . 44 8 209 Absorbed by Shields . | . . . . Core Remaining (%) 100 | 100 . . . Volleys Fired 103 | 2 62 7 32 Largest 2 | 2 2 2 2 Hottest 140 | 80 130 130 140 Shots Fired 183 | 4 117 12 50 Gun 161 | 4 111 10 36 Cannon 17 | . 3 . 14 Launcher 2 | . . 2 . Special 3 | . 3 . . Kinetic 10 | . . . 10 Thermal 122 | . 72 10 40 Explosive 2 | . . 2 . Electromagnetic 49 | 4 45 . . Robot Hit Streak 17 | 2 11 5 17 Robot Miss Streak 13 | . 13 7 2 Penetration Max . | . . . . Secondary Targets 3 | . 2 1 . Max Gunslinging Chain 1 | . 1 1 . Shots Hit Robots 136 | 2 83 10 41 Core Hits 142 | 3 93 19 27 Critical Kills 1 | . . . 1 Critical Parts Destroyed . | . . . . Critical Strikes 2 | . . . 2 Meltdown 1 | . . . 1 Destroy 1 | . . . 1 Melee Attacks . | . . . . Impact . | . . . . Slashing . | . . . . Piercing . | . . . . Sneak Attacks . | . . . . Combat Hostiles . | . . . . Follow-up Attacks . | . . . . Damage Inflicted 2832 | 42 1507 394 889 Guns 1811 | 42 1084 96 589 Cannons 351 | . 51 . 300 Explosions 670 | . 372 298 . Melee . | . . . . Ramming . | . . . . Kinetic 109 | . . . 109 Thermal 2093 | . 1217 96 780 Explosive 298 | . . 298 . Electromagnetic 332 | 42 290 . . Impact . | . . . . Slashing . | . . . . Piercing . | . . . . Highest Corruption . | . . . . Average Corruption . | . . . . Corruption Purged . | . . . . Corruption Blocked . | . . . . Overload Shots . | . . . . Overflow Damage 27 | . 18 . 9 Projectiles 9 | . . . 9 Explosions 18 | . 18 . . Melee . | . . . . Knockbacks . | . . . . Impact . | . . . . Kinetic . | . . . . Secondary . | . . . . Self-Inflicted Damage . | . . . . Shots . | . . . . Rammed . | . . . . Targets Rammed . | . . . . Kicked . | . . . . Crushed . | . . . . Highest Temperature 199 | 18 199 186 57 Average Temperature 69 | 12 75 91 24 Received Heat Transfer 318 | . 162 . 156 Siege Activations . | . . . . Martial Activations . | . . . . Shielding Activations . | . . . . Robots Disrupted . | . . . . Combat Hostiles . | . . . . Robots Corrupted . | . . . . Combat Hostiles . | . . . . Parts Fried 2 | . 2 . . Impact Corruptions . | . . . . Robots Melted 1 | . . . 1 Combat Hostiles 1 | . . . 1 Parts Melted 3 | . . . 3 Heat Transferred 2453 | . 1351 120 982 Parts Sabotaged . | . . . . Parts Stolen . | . . . . Parts Stripped . | . . . . Power Chain Reactions 1 | . 1 . . Alert | -11 -10 -10 -10 ------- Run | Yrd Mat Min Sub Maximum Alert Level 1 | . 1 . . Low Security (%) 90 | 100 84 100 . Level 1 9 | . 15 . . Level 2 . | . . . . Level 3 . | . . . . Level 4 . | . . . . Level 5 . | . . . . High Security . | . . . . Max Security . | . . . . Peak Influence 275 | 15 275 100 . Initial 96 | . . 96 . Average 73 | 2 100 29 . Influence Increases 1074 | 15 754 175 130 Destroy 0b10 Robot/C 600 | . 380 120 100 Destroy 0b10 Robot/NC 90 | 15 60 15 . Destroy Leader 120 | . 100 20 . Successful Hack 24 | . 24 . . Select Force Hacks 60 | . 60 . . Disable Machine 45 | . 45 . . Destroy Structure 60 | . 40 20 . Lose Combat Pursuer 75 | . 45 . 30 Influence Decreases 1074 | 15 506 423 130 Entered New Map 152 | . . 152 . Time Decay 912 | 15 496 271 130 Lost Part 10 | . 10 . . Squads Dispatched 7 | . 7 . . Investigation 3 | . 3 . . Extermination . | . . . . Reinforcement 4 | . 4 . . Assault . | . . . . Garrison . | . . . . Intercept . | . . . . Searches Triggered . | . . . . Construction Impeded . | . . . . Haulers Reinforced . | . . . . Active Scanning Responses . | . . . . Cargo Convoy Interrupts . | . . . . Stealth | -11 -10 -10 -10 --------- Run | Yrd Mat Min Sub Distress Signals . | . . . . Communications Jammed . | . . . . Distress Signals . | . . . . Times Spotted 49 | . 30 6 13 Peak Tracking Total 6 | . 3 3 6 Tactical Retreats 3 | . 2 . 1 Traps | -11 -10 -10 -10 ------- Run | Yrd Mat Min Sub Traps Triggered 2 | . 1 . 1 Indirectly . | . . . . Trap Hack Attempts . | . . . . Triggered . | . . . . Disarmed . | . . . . Reprogrammed . | . . . . Reused . | . . . . Traps Extracted . | . . . . Installed . | . . . . Triggered . | . . . . Machines | -11 -10 -10 -10 ---------- Run | Yrd Mat Min Sub Machines Disabled 4 | . 3 . 1 Max in Single Turn 2 | . 2 . 1 Machines Repaired . | . . . . Machines Dismantled . | . . . . Machines Sabotaged . | . . . . Overloaded Fab Kills . | . . . . Hacking | -11 -10 -10 -10 --------- Run | Yrd Mat Min Sub Machines Accessed 10 | . 8 1 1 Terminals 7 | . 6 1 . Fabricators . | . . . . Repair Stations . | . . . . Recycling Units 2 | . 2 . . Scanalyzers . | . . . . Garrison Access . | . . . . Total Hacks 25 | . 21 3 1 Successful 14 | . 13 . 1 Failed 11 | . 8 3 . Catastrophic 1 | . 1 . . Database Lockouts . | . . . . Manual 15 | . 14 1 . Terminals 22 | . 19 3 . Fabricators . | . . . . Repair Stations . | . . . . Recycling Units 2 | . 2 . . Scanalyzers . | . . . . Garrison Access . | . . . . Terminal Hacks 5 | . 4 . 1 Robot Analysis 1 | . 1 . . Locate Traps 1 | . 1 . . Registered Components 1 | . 1 . . Zone Layout 1 | . 1 . . Proto ID Catalog 1 | . . . 1 Fabricator Hacks . | . . . . Repair Station Hacks . | . . . . Recycling Unit Hacks . | . . . . Scanalyzer . | . . . . Garrison Access Hacks . | . . . . Unauthorized Hacks 9 | . 9 . . Terminals 7 | . 7 . . Botnet 1 | . 1 . . Skim 6 | . 6 . . Fabricators . | . . . . Repair Stations . | . . . . Recycling Units 2 | . 2 . . Tunnel 2 | . 2 . . Scanalyzers . | . . . . Garrison Access . | . . . . Data Cores Recovered 1 | . 1 . . Used . | . . . . Hacking Detections 6 | . 5 1 . Full Trace Events . | . . . . Feedback Events . | . . . . Feedback Blocked . | . . . . Robot Schematics Acquired . | . . . . Robots Built . | . . . . Authchips . | . . . . Time . | . . . . Total Robot Build Rating . | . . . . Part Schematics Acquired . | . . . . Parts Built . | . . . . Authchips . | . . . . Time . | . . . . Total Part Build Rating . | . . . . Part Studies Acquired . | . . . . Parts Repaired . | . . . . Time . | . . . . Parts Recycled . | . . . . Recycled Matter . | . . . . Retrieved Matter . | . . . . Retrieved Components . | . . . . Parts Scanalyzed . | . . . . Part Schematics Acquired . | . . . . Parts Damaged . | . . . . Bothacking | -11 -10 -10 -10 ------------ Run | Yrd Mat Min Sub Used RIF Installer . | . . . . Robots Hacked . | . . . . Non-combat . | . . . . Combat . | . . . . Robot Hacks Applied . | . . . . Relay Couplers Released . | . . . . Fabnet Peak Effective % . | . . . . Robots Rewired . | . . . . Allies Hacked . | . . . . Hacks Repelled . | . . . . Allies | -11 -10 -10 -10 -------- Run | Yrd Mat Min Sub Total Allies 3 | . . 3 . Largest Group 3 | . . 3 3 Highest-Rated Group 40 | . . 40 40 Highest-Rated Ally 16 | . . 16 16 Total Orders . | . . . . Ally Attacks 7 | . . . 7 Total Damage . | . . . . Kills . | . . . . Allies Corrupted . | . . . . Allies Melted . | . . . . Intel | -11 -10 -10 -10 ------- Run | Yrd Mat Min Sub Active Infowar (turns) 3558 | 4 272 2 3280 Sensors 3282 | . . 2 3280 Seismic 276 | 4 272 . . Robot Analysis Total 1 | . 1 . . Derelict Logs Recovered 2 | . . 1 1 Drone Launches . | . . . . Drone Recoveries . | . . . . Exploration | -11 -10 -10 -10 ------------- Run | Yrd Mat Min Sub Turns Passed 7294 | 81 1718 958 4537 Spaces Moved 3536 | 41 901 579 2015 Core 2 | 2 . . . Treads 3261 | 39 901 579 1742 Legs . | . . . . Wheels 273 | . . . 273 Hover . | . . . . Flight . | . . . . Fastest Speed 50 | 50 160 160 150 Average Speed 191 | 154 160 160 214 Slowest Speed 360 | 160 160 160 360 Overloaded Moves . | . . . . Propulsion Burnouts . | . . . . Robots Hopped . | . . . . Potential Cave-ins . | . . . . Cave-ins Triggered . | . . . . Exploration Rate (%) 69 | 4 99 98 78 Regions Visited 3 Branch Regions 2 Pre-discovered Areas 3 | . 2 1 . Known Exits Taken . | . . . . Unknown Exits Taken 3 | 1 1 1 . Scrap Searched 4 | . . 1 3 Spaces Dug 1 | . 1 . . Terrain Destroyed 72 | . 46 25 1 Melee . | . . . . Projectile 4 | . 3 . 1 AOE 68 | . 43 25 . Terrain Rammed . | . . . . Walls Destroyed . | . . . . Machines Disabled . | . . . . Actions | -11 -10 -10 -10 --------- Run | Yrd Mat Min Sub Total 3887 | 52 1061 599 2175 Wait 123 | . 54 4 65 Move 3533 | 40 900 578 2015 Hop . | . . . . Pick Up 38 | 3 14 2 19 Fast Attach 16 | 6 2 2 6 Attach 8 | 1 3 . 4 Detach 1 | . . . 1 Swap 28 | . 9 2 17 Drop 37 | . 17 4 16 Fire 103 | 2 62 7 32 Melee . | . . . . Ram . | . . . . Kick . | . . . . Crush . | . . . . Escape Stasis . | . . . . Rewire . | . . . . Trap . | . . . . Miscellaneous . | . . . . Route ------- -11/Scrapyard -10/Materials (discovered 5 exits: [*Mat x3] / *Min x2) -10/Mines (discovered 3 exits: [*Mat x2] / *Sub) -10/Subcaves (discovered 2 exits: [*Mat] / [*Rec]) History --------- Turn | Location | Event 20 | -11/Scrapyard | Discovered new exit (range 16) 82 | -11/Scrapyard | Entered Materials 162 | -10/Materials | Discovered new exit (range 9) 261 | -10/Materials | Discovered new exit (range 3) 308 | -10/Materials | Build established: Mutant 706 | -10/Materials | Discovered new exit (range 6) 784 | -10/Materials | Discovered new exit (range 3) 1131 | -10/Materials | Discovered new exit (range 13) 1800 | -10/Materials | Entered Mines 1816 | -10/Mines | Learned location of Zion (-7) 1869 | -10/Mines | Discovered new exit (range 7) 2467 | -10/Mines | Found a damaged Exp. Sensor Array with a note attached 2470 | -10/Mines | Found Prototype Device 2470 | -10/Mines | Identified Exp. Sensor Array 2508 | -10/Mines | Discovered new exit (range 15) 2564 | -10/Mines | Assisted by bots powering up and referring to "LRC-V3" 2746 | -10/Mines | Discovered new exit (range 6) 2758 | -10/Mines | Entered Subcaves 2758 | -10/Subcaves | Accompanied by 3 allies 3023 | -10/Subcaves | Shifting Twisted Machinery released Sub. Monowheel 3044 | -10/Subcaves | Shifting Twisted Machinery released Battle Cannon 3271 | -10/Subcaves | Visited 4L-MR0's lab 3467 | -10/Subcaves | Found Rainbow Chip 4053 | -10/Subcaves | Ambushed by Subdweller buried in earth 4060 | -10/Subcaves | Core integrity fell below 50% 4088 | -10/Subcaves | Lost 3 allies 4234 | -10/Subcaves | Shifting Twisted Machinery released Sub. Beam Cannon 4238 | -10/Subcaves | Shifting Twisted Machinery released Battle Rifle 4309 | -10/Subcaves | Learned Materials garrison access intel 4355 | -10/Subcaves | Shifting Twisted Machinery released Sub. Laser 4516 | -10/Subcaves | Discovered new exit (range 13) 4660 | -10/Subcaves | Discovered new exit (range 6) 4928 | -10/Subcaves | A swath of the cavern ceiling suddenly collapsed 7273 | -10/Subcaves | Core integrity fell below 20% 7295 | -10/Subcaves | Destroyed by S4-MJV(R) with Subdweller Machine Gun Last Messages --------------- 06790_ Acquired Sub. Shrapnel Launcher. 06791_ Subatomizers dissect the Wheel. 06795_ Acquired 15 matter. 06801_ Subatomizers dissect the Wheel. 06892_ Acquired Battle Rifle. 06907_ Acquired Sub. Machine Gun. 06919_ Acquired Sub. Optics. 07262_ Spk. Treads destroyed. 07264_ Dropped Exp. Sensor Array. 07265_ Dropped Huge Storage Unit. 07268_ Subatomizers dissect the Exp. Sensor Array. 07272_ Acquired Exp. Sensor Array. 07276_ Dropped Sub. Laser. 07276_ Acquired Sub. Machine Gun. 07279_ Subatomizers dissect the Disposable Heat Sink. 07283_ Scrap Shield destroyed. 07288_ G9-65Q(R) suffers critical hit (Destroy). 07290_ G9-65Q(R) destroyed. 07293_ Subatomizers dissect the Disposable Heat Sink. 07293_ Sub. Machine Gun destroyed. Map ----- +----------------------------------------------------+ | ?????????????????????????????????????????????????? | | ?????????????????????????????????????????????????? | | ?????????????????????????????????????????????????? | | ?????????????????????????????????????????????????? | | ?????????????????????????????????????????????????? | | ?????????????????????????????????????????????????? | | ?????????????????????????????????????????????????? | | ?????????????????????????????????????????????????? | | ?????????????????????????????????????????????????? | | ?????????????????????????????????????????????????? | | ???????????????????????????????????#####?????????? | | ?????????????????????????????####?## #?????????? | | ?????????????????#####??????## ###"" #?????##???? | | ????????????????## ##????## """#????? ##??? | | ????????????????# #?##?# " ##???" #??? | | ????????????????# ### #### "" #??#" #??? | | ????????????????# ### ### "" ####" #??? | | ????????????????# ###?# "" "" #???? | | ???????????????## #???## "" "" #???? | | ??????????????## ####### "" "" #???? | | ??????????????# ## ### ##???? | | ??????????????## ### ##?# #????? | | ???????????????## ### ##??## ##???# | | ???????????????## ##] ##????## ##### | | ???????????????# [[][=###### ## # ## | | ???????????????## !R!@[!/= #?# # | | ????????????????# &%!]![] ### ## | | ????????????????#### *########## #### ### | | ??????????????????# ##?????### ####### #?# | | ????????????????# #??????# #??####?# | | ?????????????? #?????## #??# #### | | ???????????? #???### #??# | | ???????????## #??## ### #??# | | ????????????## ## #??# ##### ##?## | | ?????????????# ?## ??## ##?## #??## | | ????????????? ???# ???# #### #???## | | ????????????# #??? ???# ## ######### | | ??????????????????? ???# ### ##?## | | ??????????????????? ????# ## ### ##?## | | ???????????????????? ?????## ### #### | | ???????????????????????????##??## | | ???????????????????????????????## | | ??????????????????????????????## ## | | ??????????????????????????????# #### #### | | ??????????????????????????????##### #?####??? | | ??????????????????????????????????###### #???????? | | ????????????????????????????????????????##???????# | | ????????????????????????????????????????????????## | | ???????????????????????????????????????????????## | | ?????????????????????????????????????????????### | +----------------------------------------------------+ Best States ------------- Heat Dissipation 35 Coolant Potential 50 Energy Generation 10 Energy Capacity 250 Matter Stores 300 Matter Capacity 300 Sight Range 16 Robot Scan Range 20 Terrain Scan Density 10 Armor Coverage 800 Evasion (%) 40 Recoil Reduction 2 Item Schematics ----------------- None Robot Schematics ------------------ None Fabricated ------------ Nothing Repaired ---------- Nothing Studied --------- None Alien Tech Used ----------------- None Achievements -------------- None Challenges ------------ None Game ------ Seed DeepTransdimensionalLaser Manual? 0 Play Time 00:24:54 Cumulative 64.2 hours Start 2025.12.31 @ 02:04:50 End 2025.12.31 @ 02:28:45 Sessions 1 Manual Loads 0 Difficulty Rogue Special Mode None Game No. 27 Rogue 27 Adventurer 0 Explorer 0 Win Type - Total 0 Types 0/0/0/0/0/0/0/0/0/0 Lore% 50 Gallery% 55 Achievement% 50 Wizard Run 0 Options --------- Layout 0 ASCII 0 Keyboard 0 Movement Mouse Keybinds 0 Fullscreen 1 Font 24/Smallcaps Map View 183x50 Zoom Use 0% Tactical HUD 1 Map Filters NONE Filters NONE Steam 1 RUN: 22edc851-c44f-4308-afb9-95efc8c8fb15